[Event "*** Titled Tuesday Blitz"]
[Site "Chess.com"]
[Date "2018.04.03"]
[Round "9"]
[White "Man-Chuk"]
[Black "Yaacovn"]
[Result "1-0"]
[WhiteElo "2680"]
[BlackElo "2635"]
[TimeControl "180+2"]
[EndTime "14:59:35 PDT"]
[Termination "Man-Chuk won by resignation"]

1. e4 {[%clk 0:03:01.5]} 1... c6 {[%clk 0:02:52.7]} 2. d4 {[%clk 0:02:46.2]}
2... d5 {[%clk 0:02:54.6]} 3. e5 {[%clk 0:02:47.4]} 3... Bf5 {[%clk 0:02:55.5]}
4. Be2 {[%clk 0:02:46.7]} 4... e6 {[%clk 0:02:56.5]} 5. Nf3 {[%clk 0:02:43]}
5... Ne7 {[%clk 0:02:57.2]} 6. O-O {[%clk 0:02:41.3]} 6... Bg6 {[%clk 0:02:57]}
7. b3 {[%clk 0:02:40.6]} 7... Nf5 {[%clk 0:02:54.4]} 8. c4 {[%clk 0:02:38.4]}
8... Nh4 {[%clk 0:02:55.5]} 9. Nc3 {[%clk 0:02:11.7]} 9... Bb4 {[%clk
0:02:54.4]} 10. Bb2 {[%clk 0:02:10.8]} 10... Nxf3+ {[%clk 0:02:53.5]} 11. Bxf3
{[%clk 0:02:12.7]} 11... O-O {[%clk 0:02:52.7]} 12. a3 {[%clk 0:02:09.2]} 12...
Be7 {[%clk 0:02:52.5]} 13. Be2 {[%clk 0:01:56.1]} 13... Nd7 {[%clk 0:02:52.3]}
14. f4 {[%clk 0:01:53.5]} 14... f6 {[%clk 0:02:41.9]} 15. Bg4 {[%clk 0:01:46.7]}
15... f5 {[%clk 0:02:30.8]} 16. Bf3 {[%clk 0:01:42.8]} 16... Be8 {[%clk
0:02:27.9]} 17. Qd3 {[%clk 0:01:23.3]} 17... dxc4 {[%clk 0:02:12.1]} 18. bxc4
{[%clk 0:01:14.5]} 18... Qa5 {[%clk 0:02:10.9]} 19. c5 {[%clk 0:00:49.4]} 19...
Rd8 {[%clk 0:02:06]} 20. Qc4 {[%clk 0:00:50.3]} 20... Bf7 {[%clk 0:02:02.3]} 21.
a4 {[%clk 0:00:45.4]} 21... b6 {[%clk 0:02:01.8]} 22. Bxc6 {[%clk 0:00:44.2]}
22... bxc5 {[%clk 0:02:01.3]} 23. d5 {[%clk 0:00:39.2]} 23... Nb6 {[%clk
0:01:26.6]} 24. Qb5 {[%clk 0:00:40.2]} 24... Qb4 {[%clk 0:01:27]} 25. d6 {[%clk
0:00:37.3]} 25... Bh4 {[%clk 0:01:24.3]} 26. g3 {[%clk 0:00:33.2]} 26... Nc4
{[%clk 0:01:22.6]} 27. Qxb4 {[%clk 0:00:25.5]} 27... cxb4 {[%clk 0:01:23.7]} 28.
Nd1 {[%clk 0:00:26.7]} 28... Bh5 {[%clk 0:01:17.1]} 29. Rc1 {[%clk 0:00:23.7]}
29... Bxd1 {[%clk 0:00:59.1]} 30. Rxc4 {[%clk 0:00:24.3]} 30... Be2 {[%clk
0:01:00.5]} 31. Rfc1 {[%clk 0:00:25.3]} 31... Bxc4 {[%clk 0:00:55.1]} 32. Rxc4
{[%clk 0:00:27.2]} 32... Bf6 {[%clk 0:00:56.1]} 33. exf6 {[%clk 0:00:24.1]}
33... Rxd6 {[%clk 0:00:57.2]} 34. fxg7 {[%clk 0:00:23.3]} 34... Rc8 {[%clk
0:00:56.6]} 35. Bd5 {[%clk 0:00:17.1]} 35... Rxc4 {[%clk 0:00:53.6]} 36. Bxc4
{[%clk 0:00:19]} 36... Rd1+ {[%clk 0:00:54.6]} 37. Bf1 {[%clk 0:00:18.8]} 37...
b3 {[%clk 0:00:31.9]} 38. Be5 {[%clk 0:00:19.7]} 38... Rb1 {[%clk 0:00:17.1]}
39. Kf2 {[%clk 0:00:19.1]} 39... b2 {[%clk 0:00:17.4]} 40. Bc4 {[%clk
0:00:16.6]} 40... Rf1+ {[%clk 0:00:16.2]} 41. Kg2 {[%clk 0:00:17.7]} 41... Rg1+
{[%clk 0:00:09.4]} 42. Kh3 {[%clk 0:00:18.5]} 42... Kf7 {[%clk 0:00:10.6]} 43.
Bxe6+ {[%clk 0:00:18.5]} 43... Kxe6 {[%clk 0:00:12.5]} 44. g8=Q+ {[%clk
0:00:18.8]} 1-0

[Event "*** Titled Tuesday Blitz"]
[Site "Chess.com"]
[Date "2018.04.03"]
[Round "9"]
[White "Abrito99"]
[Black "denizozen"]
[Result "0-1"]
[WhiteElo "2457"]
[BlackElo "2643"]
[TimeControl "180+2"]
[EndTime "14:59:38 PDT"]
[Termination "denizozen won on time"]

1. e4 {[%clk 0:03:01]} 1... e6 {[%clk 0:03:01]} 2. Nc3 {[%clk 0:02:59.8]} 2...
d5 {[%clk 0:03:02.9]} 3. Nf3 {[%clk 0:03:01]} 3... Nf6 {[%clk 0:03:01.3]} 4. e5
{[%clk 0:03:02.4]} 4... Nfd7 {[%clk 0:03:02.8]} 5. d4 {[%clk 0:03:03.9]} 5... c5
{[%clk 0:03:04.5]} 6. dxc5 {[%clk 0:03:05.4]} 6... Nc6 {[%clk 0:03:04.8]} 7. Bf4
{[%clk 0:03:06]} 7... Bxc5 {[%clk 0:03:04.9]} 8. Bd3 {[%clk 0:03:07.1]} 8... Be7
{[%clk 0:03:06.3]} 9. h4 {[%clk 0:03:07.3]} 9... Nc5 {[%clk 0:03:07.5]} 10. h5
{[%clk 0:03:08.1]} 10... h6 {[%clk 0:03:05.3]} 11. Rh3 {[%clk 0:03:07.3]} 11...
Nxd3+ {[%clk 0:03:04.5]} 12. cxd3 {[%clk 0:03:07.8]} 12... O-O {[%clk 0:03:03]}
13. Rg3 {[%clk 0:03:07.4]} 13... Kh7 {[%clk 0:03:03.9]} 14. Kf1 {[%clk
0:03:04.5]} 14... Bb4 {[%clk 0:02:55.8]} 15. d4 {[%clk 0:02:43]} 15... Ne7
{[%clk 0:02:54.5]} 16. Qd3+ {[%clk 0:02:42]} 16... Nf5 {[%clk 0:02:54.1]} 17.
Ne2 {[%clk 0:02:36.5]} 17... b6 {[%clk 0:02:52.3]} 18. Rh3 {[%clk 0:02:25.4]}
18... Kh8 {[%clk 0:02:51.7]} 19. g4 {[%clk 0:02:26.3]} 19... Ne7 {[%clk
0:02:52.6]} 20. g5 {[%clk 0:02:18.3]} 20... a5 {[%clk 0:02:36.3]} 21. gxh6
{[%clk 0:02:13.9]} 21... Ba6 {[%clk 0:02:36.2]} 22. hxg7+ {[%clk 0:02:09.6]}
22... Kxg7 {[%clk 0:02:35.5]} 23. Qd1 {[%clk 0:01:26.7]} 23... Nf5 {[%clk
0:02:32.5]} 24. Kg2 {[%clk 0:01:12.7]} 24... Kh8 {[%clk 0:02:32.9]} 25. Ng3
{[%clk 0:01:12.3]} 25... Rg8 {[%clk 0:02:33.5]} 26. Kh2 {[%clk 0:01:13.3]} 26...
Nxg3 {[%clk 0:02:28.4]} 27. fxg3 {[%clk 0:01:11.5]} 27... Rc8 {[%clk 0:02:23.7]}
28. a3 {[%clk 0:01:08.3]} 28... Be7 {[%clk 0:02:23.5]} 29. Qd2 {[%clk
0:01:08.9]} 29... Qc7 {[%clk 0:02:23.3]} 30. Bg5 {[%clk 0:00:41.5]} 30... Bxg5
{[%clk 0:02:20]} 31. Nxg5 {[%clk 0:00:27.4]} 31... Qc2 {[%clk 0:02:20.8]} 32.
Nxf7+ {[%clk 0:00:20.3]} 32... Kg7 {[%clk 0:02:22]} 33. h6+ {[%clk 0:00:21.6]}
33... Kxf7 {[%clk 0:02:21.8]} 34. Qxc2 {[%clk 0:00:21.9]} 34... Rxc2+ {[%clk
0:02:22.6]} 35. Kg1 {[%clk 0:00:23.4]} 35... Kg6 {[%clk 0:02:19.5]} 36. Re1
{[%clk 0:00:22.2]} 36... Rh8 {[%clk 0:02:17.8]} 37. Re3 {[%clk 0:00:21]} 37...
Rxh6 {[%clk 0:02:17.1]} 38. Rxh6+ {[%clk 0:00:22.5]} 38... Kxh6 {[%clk 0:02:19]}
39. Rb3 {[%clk 0:00:23.7]} 39... b5 {[%clk 0:02:18.1]} 40. Rf3 {[%clk
0:00:25.2]} 40... Bc8 {[%clk 0:02:13.1]} 41. Rf8 {[%clk 0:00:26.6]} 41... b4
{[%clk 0:02:10.3]} 42. axb4 {[%clk 0:00:27.4]} 42... axb4 {[%clk 0:02:12.2]} 43.
b3 {[%clk 0:00:27.5]} 43... Kg7 {[%clk 0:02:11.3]} 44. Rd8 {[%clk 0:00:28.3]}
44... Rc3 {[%clk 0:02:10.5]} 45. Kh2 {[%clk 0:00:27]} 45... Kf7 {[%clk
0:02:08.4]} 46. Rd6 {[%clk 0:00:27.6]} 46... Rxb3 {[%clk 0:02:07.1]} 47. Kh3
{[%clk 0:00:27.4]} 47... Rc3 {[%clk 0:02:04.2]} 48. Rb6 {[%clk 0:00:28.3]} 48...
b3 {[%clk 0:02:05.4]} 49. Kg4 {[%clk 0:00:29.4]} 49... Bd7 {[%clk 0:02:06.6]}
50. Rb7 {[%clk 0:00:30]} 50... Ke8 {[%clk 0:02:06.5]} 51. Kf4 {[%clk 0:00:31.5]}
51... Rd3 {[%clk 0:02:03.9]} 52. g4 {[%clk 0:00:31.5]} 52... Rxd4+ {[%clk
0:02:04.7]} 53. Kg5 {[%clk 0:00:33]} 53... Re4 {[%clk 0:02:02]} 54. Kf6 {[%clk
0:00:33.6]} 54... Kd8 {[%clk 0:01:59.5]} 55. g5 {[%clk 0:00:33.9]} 55... Rf4+
{[%clk 0:02:00.5]} 56. Kg7 {[%clk 0:00:33]} 56... Rf5 {[%clk 0:01:58.8]} 57. g6
{[%clk 0:00:33.8]} 57... Be8 {[%clk 0:01:59.1]} 58. Rb8+ {[%clk 0:00:32.9]}
58... Kd7 {[%clk 0:02:00]} 59. Rb7+ {[%clk 0:00:10.6]} 59... Kc8 {[%clk
0:02:00.8]} 60. Rb6 {[%clk 0:00:06]} 60... Rg5 {[%clk 0:01:56.4]} 61. Rxe6
{[%clk 0:00:07.2]} 61... Rxg6+ {[%clk 0:01:56.7]} 62. Kf8 {[%clk 0:00:03.2]}
62... Rxe6 {[%clk 0:01:55.9]} 0-1

[Event "*** Titled Tuesday Blitz"]
[Site "Chess.com"]
[Date "2018.04.03"]
[Round "9"]
[White "kasparik_garik"]
[Black "Al_Shima"]
[Result "1-0"]
[WhiteElo "2514"]
[BlackElo "2297"]
[TimeControl "180+2"]
[EndTime "14:59:38 PDT"]
[Termination "kasparik_garik won by resignation"]

1. Nf3 {[%clk 0:03:00.5]} 1... Nf6 {[%clk 0:03:00.1]} 2. g3 {[%clk 0:03:01.5]}
2... g6 {[%clk 0:03:01.3]} 3. Bg2 {[%clk 0:03:02.5]} 3... Bg7 {[%clk 0:03:02.7]}
4. O-O {[%clk 0:03:03.4]} 4... O-O {[%clk 0:03:04.4]} 5. c4 {[%clk 0:03:04.2]}
5... c6 {[%clk 0:03:05.5]} 6. d3 {[%clk 0:03:03.7]} 6... d5 {[%clk 0:03:06.4]}
7. cxd5 {[%clk 0:03:04.7]} 7... cxd5 {[%clk 0:03:07.4]} 8. Bf4 {[%clk
0:03:05.4]} 8... Nc6 {[%clk 0:03:08]} 9. Nc3 {[%clk 0:03:05.6]} 9... Re8 {[%clk
0:02:57.5]} 10. Ne5 {[%clk 0:03:04.1]} 10... Nxe5 {[%clk 0:02:40.5]} 11. Bxe5
{[%clk 0:03:04.8]} 11... e6 {[%clk 0:02:39.7]} 12. Qb3 {[%clk 0:02:49.1]} 12...
b6 {[%clk 0:02:38.1]} 13. e4 {[%clk 0:02:46.8]} 13... Bb7 {[%clk 0:02:27.3]} 14.
Bxf6 {[%clk 0:02:32.8]} 14... Qxf6 {[%clk 0:02:27.3]} 15. exd5 {[%clk
0:02:32.7]} 15... exd5 {[%clk 0:02:27.7]} 16. Bxd5 {[%clk 0:02:33]} 16... Bxd5
{[%clk 0:02:27.6]} 17. Qxd5 {[%clk 0:02:33.8]} 17... Rad8 {[%clk 0:02:24]} 18.
Qc4 {[%clk 0:02:06]} 18... Rd4 {[%clk 0:02:22.5]} 19. Qa6 {[%clk 0:02:05.3]}
19... h5 {[%clk 0:01:56.3]} 20. Rae1 {[%clk 0:01:50.7]} 20... Red8 {[%clk
0:01:55.5]} 21. Qxa7 {[%clk 0:01:48.3]} 21... h4 {[%clk 0:01:48.3]} 22. Qe7
{[%clk 0:01:35]} 22... Qc6 {[%clk 0:01:39.1]} 23. Ne4 {[%clk 0:01:29.6]} 23...
h3 {[%clk 0:01:24.8]} 24. Rc1 {[%clk 0:01:11.6]} 24... Qa8 {[%clk 0:01:19.5]}
25. Rc7 {[%clk 0:01:10.6]} 25... Qxa2 {[%clk 0:01:11.7]} 26. Ng5 {[%clk
0:00:59]} 26... Qd5 {[%clk 0:00:54.6]} 27. Nxh3 {[%clk 0:00:51.2]} 27... Rxd3
{[%clk 0:00:46.3]} 28. Nf4 {[%clk 0:00:49.6]} 28... Qf5 {[%clk 0:00:29]} 29.
Nxd3 {[%clk 0:00:47]} 29... Rxd3 {[%clk 0:00:30.9]} 30. b4 {[%clk 0:00:43.8]}
30... Bf8 {[%clk 0:00:29]} 31. Qe8 {[%clk 0:00:41.7]} 31... Qe6 {[%clk
0:00:21.5]} 32. Qxe6 {[%clk 0:00:41.7]} 32... fxe6 {[%clk 0:00:22.4]} 33. Rc6
{[%clk 0:00:42.3]} 33... Bxb4 {[%clk 0:00:22.3]} 34. Rxb6 {[%clk 0:00:41.4]}
34... Bd6 {[%clk 0:00:23.3]} 35. Rc1 {[%clk 0:00:36.5]} 35... Kf7 {[%clk
0:00:23.8]} 36. Rcc6 {[%clk 0:00:36.6]} 36... Bf8 {[%clk 0:00:18.8]} 37. Kg2
{[%clk 0:00:31.3]} 37... Rd2 {[%clk 0:00:18.3]} 38. Rxe6 {[%clk 0:00:30]} 38...
Bc5 {[%clk 0:00:18.9]} 39. Rf6+ {[%clk 0:00:30.9]} 39... Ke7 {[%clk 0:00:19.8]}
40. Rbe6+ {[%clk 0:00:31.7]} 40... Kd7 {[%clk 0:00:21.1]} 41. Re4 {[%clk
0:00:30.2]} 41... g5 {[%clk 0:00:19.1]} 42. h4 {[%clk 0:00:29]} 42... gxh4
{[%clk 0:00:19.8]} 43. Rxh4 {[%clk 0:00:29.2]} 43... Be7 {[%clk 0:00:19.6]} 44.
Rh7 {[%clk 0:00:29.9]} 44... Ke8 {[%clk 0:00:20.5]} 45. Re6 {[%clk 0:00:30.2]}
1-0

[Event "*** Titled Tuesday Blitz"]
[Site "Chess.com"]
[Date "2018.04.03"]
[Round "9"]
[White "ajkom197"]
[Black "Entilza"]
[Result "0-1"]
[WhiteElo "2380"]
[BlackElo "2192"]
[TimeControl "180+2"]
[EndTime "14:59:42 PDT"]
[Termination "Entilza won by resignation"]

1. d4 {[%clk 0:03:01.9]} 1... d5 {[%clk 0:02:59.5]} 2. Bf4 {[%clk 0:03:01.5]}
2... Nf6 {[%clk 0:02:58.1]} 3. e3 {[%clk 0:03:02.4]} 3... g6 {[%clk 0:02:56.3]}
4. c4 {[%clk 0:03:01.1]} 4... Bg7 {[%clk 0:02:56]} 5. Nc3 {[%clk 0:03:01.8]}
5... c6 {[%clk 0:02:49.5]} 6. Nf3 {[%clk 0:03:01.2]} 6... O-O {[%clk 0:02:49.5]}
7. cxd5 {[%clk 0:03:01.7]} 7... Nxd5 {[%clk 0:02:46.9]} 8. Be5 {[%clk
0:03:02.4]} 8... f6 {[%clk 0:02:44]} 9. Bg3 {[%clk 0:02:59.4]} 9... Nxc3 {[%clk
0:02:41.2]} 10. bxc3 {[%clk 0:02:59.7]} 10... b6 {[%clk 0:02:35.6]} 11. Bc4+
{[%clk 0:02:59.7]} 11... Kh8 {[%clk 0:02:35.8]} 12. O-O {[%clk 0:02:59.8]} 12...
Ba6 {[%clk 0:02:36.5]} 13. Bxa6 {[%clk 0:02:59.1]} 13... Nxa6 {[%clk 0:02:38.4]}
14. Qd3 {[%clk 0:02:59.8]} 14... Nc7 {[%clk 0:02:36.8]} 15. Bxc7 {[%clk
0:02:57.6]} 15... Qxc7 {[%clk 0:02:36.7]} 16. e4 {[%clk 0:02:58.6]} 16... c5
{[%clk 0:02:32.3]} 17. Rfd1 {[%clk 0:02:51.6]} 17... cxd4 {[%clk 0:02:32.2]} 18.
cxd4 {[%clk 0:02:51.4]} 18... Rac8 {[%clk 0:02:33.1]} 19. h3 {[%clk 0:02:50.7]}
19... Rfd8 {[%clk 0:02:31.2]} 20. d5 {[%clk 0:02:48.2]} 20... Qc2 {[%clk
0:02:27.1]} 21. Qxc2 {[%clk 0:02:45.7]} 21... Rxc2 {[%clk 0:02:26.9]} 22. Nd4
{[%clk 0:02:46.5]} 22... Rc4 {[%clk 0:02:26.3]} 23. Nc6 {[%clk 0:02:38.1]} 23...
Rd7 {[%clk 0:02:22.8]} 24. f3 {[%clk 0:02:38]} 24... h5 {[%clk 0:02:18.4]} 25.
Rac1 {[%clk 0:02:30.9]} 25... Rxc1 {[%clk 0:02:15.7]} 26. Rxc1 {[%clk
0:02:32.7]} 26... Bh6 {[%clk 0:02:16.5]} 27. Rc2 {[%clk 0:02:30.1]} 27... Be3+
{[%clk 0:02:15.6]} 28. Kf1 {[%clk 0:02:30.9]} 28... Bc5 {[%clk 0:02:16.6]} 29.
Ke2 {[%clk 0:02:31.5]} 29... Kg7 {[%clk 0:02:11.8]} 30. Kd3 {[%clk 0:02:29.5]}
30... f5 {[%clk 0:02:11.7]} 31. Kc4 {[%clk 0:02:29.5]} 31... a6 {[%clk
0:02:04.8]} 32. a4 {[%clk 0:02:28.7]} 32... Be3 {[%clk 0:02:00.1]} 33. Nb4
{[%clk 0:02:20.4]} 33... Rc7+ {[%clk 0:01:58]} 34. Kd3 {[%clk 0:02:20.7]} 34...
Rxc2 {[%clk 0:01:52.4]} 35. Kxc2 {[%clk 0:02:21]} 35... a5 {[%clk 0:01:52.5]}
36. Nc6 {[%clk 0:02:19.5]} 36... Bc5 {[%clk 0:01:48.7]} 37. Kd3 {[%clk
0:02:18.7]} 37... Kf6 {[%clk 0:01:47.3]} 38. e5+ {[%clk 0:02:18.3]} 38... Kg5
{[%clk 0:01:47.7]} 39. Nd4 {[%clk 0:02:10.7]} 39... Kf4 {[%clk 0:01:45.1]} 40.
d6 {[%clk 0:01:43.8]} 40... exd6 {[%clk 0:01:45.8]} 41. e6 {[%clk 0:01:43.3]}
41... d5 {[%clk 0:01:44.9]} 42. Nc6 {[%clk 0:01:42.3]} 42... Kg3 {[%clk
0:01:46]} 43. e7 {[%clk 0:01:39.9]} 43... Bxe7 {[%clk 0:01:45.9]} 44. Nxe7
{[%clk 0:01:41.6]} 44... Kxg2 {[%clk 0:01:46.6]} 45. Nxd5 {[%clk 0:01:38.8]}
45... Kxf3 {[%clk 0:01:42.9]} 46. Nxb6 {[%clk 0:01:39.2]} 46... g5 {[%clk
0:01:41.3]} 47. Nc4 {[%clk 0:01:37]} 47... h4 {[%clk 0:01:40.8]} 48. Nxa5 {[%clk
0:01:36.4]} 48... g4 {[%clk 0:01:41.9]} 49. Nc4 {[%clk 0:01:31.2]} 49... gxh3
{[%clk 0:01:40.9]} 50. Ne5+ {[%clk 0:01:09.4]} 50... Kf2 {[%clk 0:01:41.3]} 51.
a5 {[%clk 0:00:06]} 51... h2 {[%clk 0:01:41.9]} 52. a6 {[%clk 0:00:07.9]} 52...
h1=Q {[%clk 0:01:42.5]} 53. Ng4+ {[%clk 0:00:09.6]} 53... fxg4 {[%clk
0:01:42.2]} 54. a7 {[%clk 0:00:11.4]} 54... Qa8 {[%clk 0:01:42.3]} 55. Kc4
{[%clk 0:00:13.3]} 55... Qxa7 {[%clk 0:01:43.9]} 56. Kd5 {[%clk 0:00:14]} 56...
g3 {[%clk 0:01:45.8]} 57. Ke6 {[%clk 0:00:15.8]} 57... g2 {[%clk 0:01:47.4]} 58.
Ke5 {[%clk 0:00:17.7]} 58... Qa4 {[%clk 0:01:47.2]} 59. Kf6 {[%clk 0:00:19.6]}
59... Qb5 {[%clk 0:01:48]} 60. Ke7 {[%clk 0:00:21.5]} 60... Qc6 {[%clk
0:01:48.8]} 61. Kf8 {[%clk 0:00:22.7]} 61... Qd7 {[%clk 0:01:49.7]} 62. Kg8
{[%clk 0:00:20.3]} 62... Qe7 {[%clk 0:01:50.7]} 63. Kh8 {[%clk 0:00:20.2]} 63...
h3 {[%clk 0:01:51.7]} 64. Kg8 {[%clk 0:00:19.1]} 64... Kg1 {[%clk 0:01:53.6]}
65. Kh8 {[%clk 0:00:18.8]} 65... Kh2 {[%clk 0:01:55.5]} 0-1

[Event "*** Titled Tuesday Blitz"]
[Site "Chess.com"]
[Date "2018.04.03"]
[Round "9"]
[White "nicegg"]
[Black "Karina_Oparina"]
[Result "0-1"]
[WhiteElo "1891"]
[BlackElo "2128"]
[TimeControl "180+2"]
[EndTime "14:59:46 PDT"]
[Termination "Karina_Oparina won by resignation"]

1. e4 {[%clk 0:03:01.9]} 1... c6 {[%clk 0:02:59.9]} 2. d4 {[%clk 0:03:02.4]}
2... d5 {[%clk 0:03:00.8]} 3. e5 {[%clk 0:03:03.7]} 3... Bf5 {[%clk 0:03:01.3]}
4. g4 {[%clk 0:03:04.9]} 4... Bd7 {[%clk 0:03:01.3]} 5. Be3 {[%clk 0:03:04.7]}
5... e6 {[%clk 0:03:02.1]} 6. c3 {[%clk 0:03:05.7]} 6... Qc7 {[%clk 0:02:58]} 7.
Nd2 {[%clk 0:03:00.1]} 7... c5 {[%clk 0:02:58.5]} 8. Be2 {[%clk 0:02:53]} 8...
Nc6 {[%clk 0:02:57.2]} 9. h4 {[%clk 0:02:48.2]} 9... Nge7 {[%clk 0:02:30.3]} 10.
h5 {[%clk 0:02:46.1]} 10... Nc8 {[%clk 0:02:26.1]} 11. Ngf3 {[%clk 0:02:38.2]}
11... cxd4 {[%clk 0:02:22.7]} 12. cxd4 {[%clk 0:02:34.4]} 12... Nb6 {[%clk
0:02:23.3]} 13. Rc1 {[%clk 0:02:15.9]} 13... Be7 {[%clk 0:02:18.8]} 14. h6
{[%clk 0:02:10.6]} 14... g6 {[%clk 0:02:18.6]} 15. Nb3 {[%clk 0:01:51.1]} 15...
O-O-O {[%clk 0:02:09.1]} 16. Bg5 {[%clk 0:01:34.3]} 16... Bxg5 {[%clk
0:01:55.2]} 17. Nxg5 {[%clk 0:01:32.2]} 17... Rdf8 {[%clk 0:01:49.3]} 18. Nc5
{[%clk 0:01:09.7]} 18... Qd8 {[%clk 0:01:49.1]} 19. Qd2 {[%clk 0:00:55.6]} 19...
Kb8 {[%clk 0:01:44.3]} 20. f4 {[%clk 0:00:37]} 20... Qe7 {[%clk 0:01:42.4]} 21.
Rh3 {[%clk 0:00:21.4]} 21... f6 {[%clk 0:01:42]} 22. exf6 {[%clk 0:00:21.6]}
22... Qxf6 {[%clk 0:01:41.3]} 23. Re3 {[%clk 0:00:19.3]} 23... Qxf4 {[%clk
0:01:25.7]} 24. Ngxe6 {[%clk 0:00:19.5]} 24... Bxe6 {[%clk 0:01:19.3]} 25. Nxe6
{[%clk 0:00:20.5]} 25... Qf2+ {[%clk 0:01:18.9]} 26. Kd1 {[%clk 0:00:20.7]}
26... Re8 {[%clk 0:01:08.3]} 27. Rf3 {[%clk 0:00:21.1]} 27... Qg1+ {[%clk
0:01:03.9]} 28. Rf1 {[%clk 0:00:21.2]} 28... Qh2 {[%clk 0:00:57.4]} 29. Qf4+
{[%clk 0:00:11.3]} 29... Qxf4 {[%clk 0:00:56.7]} 30. Nxf4 {[%clk 0:00:11.6]}
30... Nxd4 {[%clk 0:00:57.7]} 31. Bd3 {[%clk 0:00:12.1]} 31... Re3 {[%clk
0:00:45.7]} 32. g5 {[%clk 0:00:11.9]} 32... Rf8 {[%clk 0:00:40.5]} 33. Kd2
{[%clk 0:00:11.6]} 33... Rf3 {[%clk 0:00:36.6]} 34. Rxf3 {[%clk 0:00:11.8]}
34... Nxf3+ {[%clk 0:00:37.1]} 35. Ke3 {[%clk 0:00:12.9]} 35... Nxg5 {[%clk
0:00:37.1]} 36. Rg1 {[%clk 0:00:11.7]} 36... Re8+ {[%clk 0:00:35.3]} 37. Kd2
{[%clk 0:00:11.9]} 37... Nf3+ {[%clk 0:00:35.7]} 38. Kc3 {[%clk 0:00:12.1]}
38... Nxg1 {[%clk 0:00:36.3]} 39. Bxg6 {[%clk 0:00:13]} 39... hxg6 {[%clk
0:00:36.3]} 40. Nxg6 {[%clk 0:00:14.1]} 40... Ne2+ {[%clk 0:00:34]} 41. Kd2
{[%clk 0:00:13.9]} 41... Nd4 {[%clk 0:00:31.5]} 42. h7 {[%clk 0:00:14.3]} 42...
Nc4+ {[%clk 0:00:31]} 43. Kc3 {[%clk 0:00:14.9]} 43... Nb5+ {[%clk 0:00:29.1]}
44. Kb4 {[%clk 0:00:15.3]} 44... a6 {[%clk 0:00:28.5]} 45. h8=Q {[%clk
0:00:14.9]} 45... Rxh8 {[%clk 0:00:28.8]} 46. Nxh8 {[%clk 0:00:16]} 46... Nxb2
{[%clk 0:00:28.4]} 47. Kc5 {[%clk 0:00:17.2]} 47... d4 {[%clk 0:00:27.9]} 48.
Ng6 {[%clk 0:00:18.1]} 48... d3 {[%clk 0:00:29]} 0-1

[Event "*** Titled Tuesday Blitz"]
[Site "Chess.com"]
[Date "2018.04.03"]
[Round "9"]
[White "DiogenesSinopeus"]
[Black "Marcus_Harvey"]
[Result "0-1"]
[WhiteElo "2426"]
[BlackElo "2602"]
[TimeControl "180+2"]
[EndTime "14:59:52 PDT"]
[Termination "Marcus_Harvey won by resignation"]

1. d4 {[%clk 0:03:01.9]} 1... Nf6 {[%clk 0:02:59.8]} 2. c4 {[%clk 0:03:02.4]}
2... e6 {[%clk 0:03:00.5]} 3. Nc3 {[%clk 0:03:03.6]} 3... Bb4 {[%clk 0:03:01.4]}
4. e3 {[%clk 0:03:05.1]} 4... O-O {[%clk 0:03:02.3]} 5. Bd3 {[%clk 0:03:06.3]}
5... d5 {[%clk 0:02:59.6]} 6. a3 {[%clk 0:03:07.1]} 6... Bd6 {[%clk 0:02:59.9]}
7. c5 {[%clk 0:02:58.7]} 7... Be7 {[%clk 0:03:00.3]} 8. b4 {[%clk 0:03:00.3]}
8... a5 {[%clk 0:02:59.6]} 9. Bb2 {[%clk 0:03:01.8]} 9... b6 {[%clk 0:02:58.7]}
10. f4 {[%clk 0:02:54.6]} 10... bxc5 {[%clk 0:02:53.7]} 11. bxc5 {[%clk
0:02:48.4]} 11... Ba6 {[%clk 0:02:54.6]} 12. Nf3 {[%clk 0:02:45.8]} 12... Qc8
{[%clk 0:02:51.4]} 13. Ne5 {[%clk 0:02:17]} 13... Nfd7 {[%clk 0:02:45.5]} 14.
O-O {[%clk 0:02:14]} 14... Bxd3 {[%clk 0:02:41.7]} 15. Qxd3 {[%clk 0:02:04.4]}
15... Nxe5 {[%clk 0:02:42.5]} 16. fxe5 {[%clk 0:02:04.2]} 16... Qa6 {[%clk
0:02:43.5]} 17. Qd1 {[%clk 0:01:55.2]} 17... Nc6 {[%clk 0:02:42.7]} 18. Qh5
{[%clk 0:01:40.1]} 18... Qd3 {[%clk 0:02:30.8]} 19. Qe2 {[%clk 0:01:18.7]} 19...
Qxe2 {[%clk 0:02:28.5]} 20. Nxe2 {[%clk 0:01:20.6]} 20... Rfb8 {[%clk
0:02:26.5]} 21. Bc3 {[%clk 0:01:16.9]} 21... Rb3 {[%clk 0:02:20.8]} 22. a4
{[%clk 0:01:09.7]} 22... Rab8 {[%clk 0:02:20.1]} 23. Rfc1 {[%clk 0:01:10.6]}
23... Bg5 {[%clk 0:02:16.2]} 24. Kf2 {[%clk 0:01:12]} 24... Nb4 {[%clk
0:02:17.2]} 25. Bxb4 {[%clk 0:01:12.4]} 25... R8xb4 {[%clk 0:02:17.6]} 26. Rc3
{[%clk 0:01:04]} 26... Rxc3 {[%clk 0:02:10.6]} 27. Nxc3 {[%clk 0:01:05.9]} 27...
Rb3 {[%clk 0:02:10.4]} 28. Rb1 {[%clk 0:01:07.5]} 28... Rxb1 {[%clk 0:01:43.3]}
29. Nxb1 {[%clk 0:01:09.4]} 29... c6 {[%clk 0:01:42.3]} 30. Nc3 {[%clk
0:00:52.9]} 30... f6 {[%clk 0:01:42.5]} 31. exf6 {[%clk 0:00:40.8]} 31... gxf6
{[%clk 0:01:43.6]} 32. Nb1 {[%clk 0:00:30.3]} 32... e5 {[%clk 0:01:40.5]} 33.
Ke2 {[%clk 0:00:28.3]} 33... e4 {[%clk 0:01:28.1]} 34. Nd2 {[%clk 0:00:27.1]}
34... f5 {[%clk 0:01:29.4]} 35. Nb3 {[%clk 0:00:27.5]} 35... Bd8 {[%clk
0:01:30.5]} 36. Kf2 {[%clk 0:00:25.2]} 36... Kg7 {[%clk 0:01:31]} 37. g3 {[%clk
0:00:21.1]} 37... Kg6 {[%clk 0:01:31.9]} 38. Nc1 {[%clk 0:00:20.6]} 38... Kg5
{[%clk 0:01:32.5]} 39. Ne2 {[%clk 0:00:21.7]} 39... Kg4 {[%clk 0:01:30.1]} 40.
Nf4 {[%clk 0:00:22.5]} 40... Be7 {[%clk 0:01:24.2]} 41. Ne6 {[%clk 0:00:23.7]}
41... Kh3 {[%clk 0:01:16.6]} 42. Ng7 {[%clk 0:00:18.8]} 42... Kxh2 {[%clk
0:01:11.1]} 43. Nxf5 {[%clk 0:00:20.1]} 43... Bf6 {[%clk 0:01:01.1]} 44. Nd6
{[%clk 0:00:17.1]} 44... Bd8 {[%clk 0:00:52.2]} 45. Nf7 {[%clk 0:00:17.3]} 45...
Bc7 {[%clk 0:00:45.6]} 46. g4 {[%clk 0:00:16.6]} 46... Bg3+ {[%clk 0:00:42.5]}
47. Ke2 {[%clk 0:00:17.1]} 47... Kh3 {[%clk 0:00:43.4]} 48. Nd8 {[%clk
0:00:14.8]} 48... Kxg4 {[%clk 0:00:42.5]} 49. Nxc6 {[%clk 0:00:16.5]} 49... h5
{[%clk 0:00:38.6]} 50. Ne7 {[%clk 0:00:11]} 50... h4 {[%clk 0:00:39.3]} 51. Nxd5
{[%clk 0:00:12.5]} 51... h3 {[%clk 0:00:40.7]} 52. Kf1 {[%clk 0:00:12.4]} 52...
Kf3 {[%clk 0:00:41.1]} 53. Nf4 {[%clk 0:00:13.1]} 53... h2 {[%clk 0:00:40.7]}
0-1